bitfinex/quotes_ETHUSD_20230703
["timestamp","ask_amount","ask_price","bid_price","bid_amount"]
[1688385059544,20.4167995,1964.2,1963.6,0.53488268]
[1688385059712,22.2758995,1964.2,1963.5,9.52283671]
[1688385059915,2.22758995,1964.1,1963.6,5.97756978]
[1688385060125,10.2356395,1964.0,1963.6,5.97756978]
[1688385060459,12.7814595,1964.0,1963.4,5.749956]
[1688385060656,12.7814595,1964.0,1963.3,5.355]
[1688385060657,15.9285595,1964.0,1963.3,5.355]
[1688385060801,15.9285595,1964.0,1963.2,6.5097242]
[1688385060802,2.1823,1963.9,1963.2,6.5097242]
[1688385061157,12.73112,1963.7,1963.2,12.01132364]
[1688385061353,0.0520995,1963.6,1963.1,5.09388]
[1688385061506,0.0520995,1963.6,1963.1,5.09385]
[1688385061507,10.18603,1963.5,1963.1,5.09385]
[1688385061831,0.0520995,1963.4,1963.1,10.60042536]
[1688385062231,0.0520995,1963.4,1963.1,15.95555536]
[1688385062420,0.0520995,1963.4,1963.1,20.82621672]
[1688385064526,0.0520995,1963.4,1963.1,18.82621672]
[1688385065452,0.0520995,1963.4,1963.1,20.81706856]
[1688385066425,0.0520995,1963.4,1963.1,18.81706856]
[1688385067044,0.0520995,1963.4,1963.1,18.4933972]
[1688385067954,0.0520995,1963.4,1963.1,13.3994172]
[1688385068132,0.0520995,1963.4,1963.1,18.4933972]
[1688385068333,0.0520995,1963.4,1963.1,16.4933972]
[1688385069043,0.0520995,1963.4,1963.1,12.73495]
[1688385069243,10.2385195,1963.4,1963.0,6.75187578]
[1688385069572,10.2385195,1963.4,1962.9,5.19433]
[1688385069862,10.2385195,1963.4,1963.0,10.18833]
[1688385070162,11.51701845,1963.4,1963.0,10.18848]
[1688385071162,11.51701845,1963.4,1963.0,5.09424]
[1688385071920,11.51701845,1963.4,1963.0,10.18848]
[1688385072158,11.51701845,1963.4,1963.0,12.74726816]
[1688385073328,11.51701845,1963.4,1963.0,10.18848]
[1688385076674,14.06361845,1963.4,1963.0,10.18848]
[1688385076873,12.7851195,1963.4,1963.0,10.18848]
[1688385077850,12.7851195,1963.4,1962.9,9.17440349]
[1688385078082,12.7851195,1963.4,1962.9,11.73319165]
[1688385078375,12.7851195,1963.4,1963.0,5.09424]
[1688385078552,12.7851195,1963.4,1963.0,10.18848]
[1688385078898,12.73302,1963.4,1963.0,10.18848]
[1688385081991,12.73302,1963.4,1962.9,1.53291349]
[1688385081992,14.006322,1963.4,1962.9,1.53291349]
[1688385082199,14.006322,1963.4,1962.7,3.35525192]
[1688385082200,0.0520995,1963.3,1962.7,3.35525192]
[1688385082363,12.73482,1963.2,1962.6,0.159654]
[1688385082567,0.0520995,1963.1,1962.6,3.61142856]
[1688385082764,10.18874,1963.0,1962.6,0.55878816]
[1688385082967,10.18874,1963.0,1962.5,2.04581001]
[1688385082968,0.0520995,1962.9,1962.5,2.53228]
[1688385083149,10.2413695,1962.9,1962.5,8.13191845]
[1688385083353,10.2413695,1962.9,1962.5,12.97745845]
[1688385083591,5.1466295,1962.9,1962.5,12.97745845]
[1688385084090,4.45766,1963.2,1962.5,12.97745845]
[1688385084091,7.00457,1963.2,1962.6,4.55878816]
[1688385084290,7.00442,1963.2,1962.7,12.73702]
[1688385085777,12.09814,1963.2,1962.7,12.73702]
[1688385086177,2.5601,1963.1,1962.7,12.73702]
[1688385086376,7.65411,1963.1,1962.7,12.73702]
[1688385086578,12.74812,1963.1,1962.7,10.18962]
[1688385086905,12.74812,1963.1,1962.7,5.09481]
[1688385088008,14.47033876,1963.1,1962.7,10.18983]
[1688385088208,17.01732876,1963.1,1962.7,5.09481]
[1688385089475,17.01732876,1963.1,1962.7,10.18983]
[1688385089681,0.0483878,1963.0,1962.5,8.50823344]
[1688385089918,5.09458,1962.9,1962.5,8.50829344]
[1688385090071,5.09458,1962.9,1962.5,3.41283344]
[1688385090277,0.01650759,1963.0,1962.5,18.70820309]
[1688385091105,0.01650759,1963.0,1962.5,16.70820309]
[1688385091279,0.01650759,1963.0,1962.5,15.29536965]
[1688385092781,0.01650759,1963.0,1962.5,13.29536965]
[1688385093176,2.5601,1963.1,1962.6,0.88525161]
[1688385093417,2.5601,1963.1,1962.6,2.18225161]
[1688385093630,7.65408,1963.1,1962.7,12.73723]
[1688385093917,2.5601,1963.1,1962.7,12.73723]
[1688385094724,7.65414,1963.1,1962.7,12.73723]
[1688385095284,2.5601,1963.1,1962.7,12.73723]
[1688385095540,1.83867198,1963.1,1962.9,0.53311001]
[1688385095844,10.18669,1963.4,1963.0,5.09424]
[1688385095845,6.38567995,1963.3,1963.0,5.09424]
[1688385096191,5.09372,1963.2,1963.0,5.09424]
[1688385097141,5.09372,1963.2,1962.9,10.53930743]
[1688385097308,10.18744,1963.2,1962.9,10.53930743]
[1688385097677,12.55654,1963.2,1962.9,10.53930743]
[1688385099231,12.55654,1963.2,1962.9,5.09432]
[1688385099547,5.09322,1963.4,1963.0,2.55878816]
[1688385099821,7.46222,1963.5,1963.2,5.09362]
[1688385100004,12.55542,1963.5,1963.2,5.09362]
[1688385100207,12.55542,1963.5,1963.2,5.09372]
[1688385103826,12.55542,1963.5,1963.1,5.09378]
[1688385103827,16.612068,1963.5,1962.9,1.82411001]
[1688385104038,16.612068,1963.5,1963.0,6.51239973]
[1688385104039,18.520568,1963.5,1963.0,6.51239973]
[1688385104246,18.520568,1963.5,1963.1,0.88513972]
[1688385104471,10.18692,1963.3,1963.1,0.88513972]
[1688385104698,10.18692,1963.3,1963.0,0.53311001]
[1688385104902,12.73365,1963.3,1963.0,0.53311001]
[1688385105085,12.73365,1963.3,1962.9,6.42719215]
[1688385105407,14.63435,1963.3,1962.9,6.42719215]
[1688385105930,0.0275017,1963.2,1962.9,5.62758001]
[1688385106088,5.1213917,1963.2,1962.9,5.62758001]
[1688385106290,11.65400817,1963.2,1962.9,0.53311001]
[1688385106594,10.2153282,1963.1,1962.9,0.53311001]
[1688385106981,3.91832817,1963.2,1962.9,0.53311001]
[1688385107184,2.4521,1963.2,1962.9,0.53311001]
[1688385108204,2.4521,1963.2,1962.9,5.62755001]
[1688385109641,2.4521,1963.2,1962.7,6.42865151]
[1688385109920,0.04144419,1963.1,1962.8,10.20080816]
[1688385110214,2.525,1963.4,1962.8,15.82969753]
[1688385110376,2.525,1963.4,1962.8,16.62930967]
[1688385110884,5.09302,1963.5,1962.9,5.355]
[1688385111091,2.525,1963.5,1963.1,12.73462]
[1688385112696,2.525,1963.5,1963.1,10.1877]
[1688385112994,3.46637,1963.5,1963.1,10.1877]
[1688385114519,36.1061,1963.8,1963.3,12.73321]
[1688385114520,30.56,1963.8,1963.3,12.73321]
[1688385114713,6.90467671,1963.9,1963.4,7.65180816]
[1688385114714,11.99683671,1963.9,1963.4,7.65180816]
[1688385114894,10.1841,1963.9,1963.4,7.65180816]
[1688385117053,5.09194,1963.9,1963.4,7.65180816]
[1688385117250,10.19996759,1964.0,1963.4,7.65180816]
[1688385119455,10.19996759,1964.0,1963.4,12.74500816]
[1688385120441,15.3154496,1964.0,1963.4,12.74500816]
[1688385121962,15.3154496,1964.0,1963.4,7.65180816]
[1688385122168,10.2236296,1964.0,1963.4,12.74500816]
[1688385122352,0.01650759,1964.0,1963.4,14.04200816]
[1688385122665,0.01650759,1964.0,1963.6,5.0926]
[1688385123853,2.51650759,1964.0,1963.6,5.0926]
[1688385124555,2.51650759,1964.0,1963.6,10.18528]
[1688385126745,2.51650759,1964.0,1963.6,12.74406816]
[1688385129088,2.5,1964.0,1963.7,2.55878816]
[1688385129254,2.5,1964.0,1963.8,10.18432]
[1688385130246,2.5,1964.0,1963.8,15.28918816]
[1688385130583,2.5,1964.0,1963.8,16.57518816]
[1688385133937,2.5,1964.0,1963.8,15.28918816]
[1688385134552,2.5,1964.0,1963.9,2.55878816]
[1688385134745,2.5,1964.0,1963.9,3.85578816]
[1688385134949,2.5,1964.0,1963.9,21.94053816]
[1688385135260,2.5,1964.0,1963.9,24.94053816]
[1688385141522,2.5,1964.0,1963.9,23.64353816]
[1688385142066,2.5,1964.0,1963.9,24.89053816]
[1688385145078,2.5,1964.0,1963.9,23.59353816]
[1688385145278,2.5,1964.0,1963.9,24.87953816]
[1688385148735,2.5,1964.0,1963.9,19.52453816]
[1688385149021,2.5,1964.0,1963.9,18.23853816]
[1688385149022,2.53627148,1964.0,1963.9,18.23853816]
[1688385149525,2.53627148,1964.0,1963.9,15.69258816]
[1688385151536,2.53627148,1964.0,1963.9,18.23853816]
[1688385152448,2.53627148,1964.0,1963.9,3.0]
[1688385152592,2.53627148,1964.0,1963.8,0.40069006]
[1688385152792,2.53627148,1964.0,1963.8,7.65093816]
[1688385153328,2.53627148,1964.0,1963.8,12.74309816]
[1688385154292,2.53627148,1964.0,1963.8,7.65093816]
[1688385154720,12.71973148,1964.0,1963.8,2.55878816]
[1688385154919,7.62800148,1964.0,1963.8,2.55878816]
[1688385155847,7.62800148,1964.0,1963.6,0.40071643]
[1688385155848,3.99946563,1964.0,1963.6,0.40071643]
[1688385156017,3.99946563,1964.0,1963.6,11.05208459]
[1688385156018,7.62791148,1964.0,1963.6,11.05208459]
[1688385156198,7.59164,1964.0,1963.6,18.29028816]
[1688385156903,12.68328,1964.0,1963.6,18.29028816]
[1688385157115,7.59164,1964.0,1963.6,18.29028816]
[1688385158234,12.68328,1964.0,1963.6,18.29028816]
[1688385159807,0.03318085,1963.9,1963.6,18.29028816]
[1688385160134,5.12514085,1963.9,1963.6,18.29028816]
[1688385160321,7.48616,1963.9,1963.6,18.29028816]
[1688385163041,7.48616,1963.9,1963.6,15.74394816]
[1688385165907,2.3942,1963.9,1963.6,15.74394816]
[1688385166146,2.5,1964.0,1963.8,10.18432]
[1688385177991,7.59167,1964.0,1963.8,5.09216]
[1688385178197,0.03198588,1963.9,1963.8,5.09216]
[1688385180007,2.5,1964.0,1963.8,26.52901416]
[1688385180170,2.5,1964.0,1963.9,2.55878816]
[1688385180377,2.5,1964.0,1963.9,15.28853816]
[1688385180547,2.5,1964.0,1963.9,18.28853816]
[1688385180751,2.5,1964.0,1963.9,19.17332646]
[1688385181086,2.5,1964.0,1963.9,26.85245583]
[1688385181315,2.5,1964.0,1963.9,28.17961952]
[1688385183890,2.5,1964.0,1963.9,27.64549015]
[1688385184401,2.466,1964.5,1964.2,7.355]
[1688385184581,2.4429,1964.7,1964.3,7.91378816]
[1688385184778,2.4429,1964.7,1964.4,13.51777882]
[1688385184994,2.4429,1964.7,1964.5,2.55878816]
[1688385185162,2.4429,1964.7,1964.6,10.18018]
[1688385185489,1.8813,1964.9,1964.6,12.73896816]
[1688385185717,1.8813,1964.9,1964.7,2.55878816]
[1688385185858,1.8813,1964.9,1964.8,5.08957]
[1688385186057,2.4429,1965.1,1964.8,5.08957]
[1688385186357,2.4429,1965.1,1964.8,10.17914]
[1688385186557,7.53173,1965.1,1964.8,10.17914]
[1688385187820,2.4429,1965.1,1964.8,10.17914]
[1688385192829,3.893048,1965.1,1964.8,5.08957]
[1688385193031,3.893048,1965.1,1964.6,5.09007]
[1688385193032,1.286,1964.9,1964.6,5.09007]
[1688385193338,11.46486,1964.9,1964.6,5.09007]
[1688385194400,11.46486,1964.9,1964.6,10.18016]
[1688385195032,6.37531,1964.9,1964.6,10.18016]
[1688385195244,8.26518,1965.0,1964.6,12.7252]
[1688385195416,8.26518,1965.0,1964.6,15.28398816]
[1688385195417,1.88,1965.0,1964.6,15.28398816]
[1688385197897,6.96906,1965.0,1964.6,15.28398816]
[1688385199749,1.88,1965.0,1964.6,15.28398816]
[1688385200239,1.88,1965.0,1964.7,2.55878816]
[1688385200545,1.88,1965.0,1964.8,10.43501882]
[1688385201542,7.53173,1965.1,1964.8,10.43501882]
[1688385201698,7.53173,1965.1,1964.8,15.28270816]
[1688385202301,2.4429,1965.1,1964.8,12.73792816]
[1688385202605,7.5317,1965.1,1964.8,12.73792816]
[1688385204553,7.5317,1965.1,1964.5,0.41054887]
[1688385204843,0.02626518,1965.0,1964.7,5.08969]
[1688385205132,5.08915,1965.0,1964.8,5.08952]
[1688385207110,10.1783,1965.0,1964.8,5.08952]
[1688385212243,0.0520995,1964.9,1964.7,10.17944]
[1688385212448,10.1783,1965.0,1964.7,10.17944]
[1688385216613,0.0458215,1964.9,1964.7,5.08969]
[1688385217013,1.297,1965.0,1964.7,5.08969]
[1688385218138,1.297,1965.0,1964.6,5.08993]
[1688385218139,0.03182779,1964.9,1964.6,5.08993]
[1688385218340,0.03182779,1964.9,1964.6,5.0899]
[1688385218736,0.03182779,1964.9,1964.6,10.17999]
[1688385220956,0.03182779,1964.9,1964.6,5.0899]
[1688385221954,0.03182779,1964.9,1964.6,5.09006]
[1688385223319,0.03182779,1964.9,1964.5,5.09018]
[1688385224629,5.12117779,1964.9,1964.5,5.09018]
[1688385226064,10.21052779,1964.9,1964.5,5.09018]
[1688385235885,10.21052779,1964.9,1964.5,10.18053]
[1688385236070,10.1787,1964.9,1964.5,10.18053]
[1688385236686,10.1787,1964.9,1964.5,12.7257]
[1688385237049,5.08935,1964.9,1964.5,12.7257]
[1688385254841,1.8361,1965.0,1964.4,1.69444423]
[1688385255025,5.12485958,1964.9,1964.5,7.63538]
[1688385255211,10.21420958,1964.9,1964.5,12.72573]
[1688385255400,10.1787,1964.9,1964.5,12.72573]
[1688385255928,5.08934,1964.9,1964.6,2.55878816]
[1688385256081,5.08934,1964.9,1964.7,5.08983]
[1688385256280,5.08934,1964.9,1964.7,10.17966]
[1688385262766,12.01449,1965.0,1964.7,10.17966]
[1688385263022,6.92527,1965.0,1964.7,10.17966]
[1688385267022,1.8361,1965.0,1964.7,10.17966]
[1688385268611,1.8361,1965.0,1964.7,12.72457]
[1688385271843,1.8361,1965.0,1964.7,10.17966]
[1688385274453,1.8361,1965.0,1964.7,5.08983]
[1688385274645,0.0520995,1964.9,1964.7,10.17966]
[1688385274799,1.8361,1965.0,1964.7,10.17966]
[1688385278140,1.8361,1965.0,1964.7,12.72457]
[1688385281905,2.45940759,1965.1,1964.7,12.72457]
[1688385282105,4.37580759,1965.1,1964.7,12.72457]
[1688385284548,4.37580759,1965.1,1964.7,15.28335816]
[1688385287354,0.01650759,1965.1,1964.8,2.55878816]
[1688385287532,5.08833,1965.3,1965.0,10.178]
[1688385287533,2.5591,1965.3,1965.0,10.178]
[1688385287922,1.8508,1965.4,1965.1,7.64739816]
[1688385288117,1.8508,1965.4,1965.1,12.73618816]
[1688385288842,1.8508,1965.4,1965.1,7.64739816]
[1688385289653,1.8508,1965.4,1965.1,12.73618816]
[1688385291827,1.8508,1965.4,1965.1,7.64739816]
[1688385294119,4.97730084,1965.5,1965.1,7.64739816]
[1688385294955,2.97730084,1965.5,1965.1,7.64739816]
[1688385295135,5.08786,1965.5,1965.1,7.64739816]
[1688385295522,3.08786,1965.5,1965.1,7.64739816]
[1688385295719,5.08786,1965.5,1965.1,7.64739816]
[1688385295953,10.17572,1965.5,1965.1,7.64739816]
[1688385297468,12.7196,1965.5,1965.1,2.55878816]
[1688385297673,14.3518,1965.5,1965.1,7.64757816]
[1688385298028,0.04366215,1965.4,1965.0,0.41239055]
[1688385298228,5.08833,1965.3,1965.0,8.06017871]
[1688385298427,5.08833,1965.3,1965.0,7.64778816]
[1688385299077,10.17666,1965.3,1965.0,7.64778816]
[1688385299367,10.17666,1965.3,1964.9,10.17827]
[1688385299570,0.03076359,1965.2,1964.9,8.04617641]
[1688385299740,0.03076359,1965.2,1964.9,13.13548641]
[1688385300121,5.08859,1965.2,1964.9,10.57669825]
[1688385300280,0.02133591,1965.1,1964.6,5.08998]
[1688385300465,12.72145,1965.2,1964.6,11.72756]
[1688385300779,14.01845,1965.2,1964.6,5.08988]
[1688385300940,1.952945,1965.1,1964.6,5.08988]
[1688385301130,10.17836,1965.0,1964.6,10.17997]
[1688385301684,10.17836,1965.0,1964.6,12.72501]
[1688385302270,10.17836,1965.0,1964.6,10.17997]
[1688385303267,10.17836,1965.0,1964.6,12.73875816]
[1688385306638,10.17836,1965.0,1964.6,10.17997]
[1688385307041,5.08918,1965.0,1964.6,10.17997]
[1688385307240,10.17836,1965.0,1964.6,10.17997]
[1688385307447,12.72288,1965.0,1964.5,7.04794639]
[1688385307659,12.72288,1965.0,1964.5,14.69695455]
[1688385308941,10.72288,1965.0,1964.5,14.69695455]
[1688385309190,14.011008,1965.0,1964.5,14.69695455]
[1688385309490,12.011008,1965.0,1964.5,14.69695455]
[1688385309651,14.011008,1965.0,1964.5,14.69695455]
[1688385310577,12.011008,1965.0,1964.5,14.69695455]
[1688385310959,7.466488,1965.0,1964.5,14.69695455]
[1688385311282,12.555668,1965.0,1964.5,14.69695455]
[1688385311661,12.72288,1965.0,1964.5,14.69695455]
[1688385314402,12.72288,1965.0,1964.5,16.62117801]
[1688385315476,12.72288,1965.0,1964.5,13.65228346]
[1688385315884,12.72288,1965.0,1964.5,12.10458346]
[1688385317181,12.72288,1965.0,1964.5,7.01436346]
[1688385317900,12.72288,1965.0,1964.5,5.09014]
[1688385318267,12.72288,1965.0,1964.5,10.18049]
[1688385318469,12.72288,1965.0,1964.5,5.09014]
[1688385318667,12.72288,1965.0,1964.5,10.18049]
[1688385319097,10.72288,1965.0,1964.5,10.18049]
[1688385319345,12.72288,1965.0,1964.6,1.018049]
[1688385319653,12.72288,1965.0,1964.6,5.09002]
[1688385320912,12.72288,1965.0,1964.6,5.09008]
[1688385322546,12.72288,1965.0,1964.5,5.09014]
[1688385323862,12.72288,1965.0,1964.4,12.19468124]
[1688385324041,1.6192,1964.9,1964.4,14.7534694]
[1688385324354,11.79805,1964.9,1964.5,6.56561694]
[1688385324861,11.79805,1964.9,1964.5,11.65596694]
[1688385325652,6.70852,1964.9,1964.5,11.65596694]
[1688385325863,8.84082,1964.9,1964.5,11.65596694]
[1688385326331,6.84082,1964.9,1964.5,6.56561694]
[1688385326718,6.84082,1964.9,1964.5,14.20113694]
[1688385326719,7.22161,1964.9,1964.5,14.20113694]
[1688385326917,5.22161,1964.9,1964.7,5.08983]
[1688385327117,5.22161,1964.9,1964.6,5.08992]
[1688385327354,5.08931,1964.9,1964.5,5.0902]
[1688385327559,5.08931,1964.9,1964.5,10.18042]
[1688385327919,10.17862,1964.9,1964.5,10.18042]
[1688385328122,6.361624,1964.9,1964.4,12.19478124]
[1688385328447,15.292584,1964.9,1964.4,7.10431124]
[1688385328653,11.995584,1964.9,1964.4,6.70381]
[1688385328955,11.995584,1964.9,1964.0,5.09161]
[1688385328956,14.55437216,1964.9,1964.0,5.09161]
[1688385329156,12.72629,1964.5,1964.0,6.57341]
[1688385329357,12.72629,1964.5,1964.0,11.66507]
[1688385329565,11.46712,1964.5,1964.0,11.66507]
[1688385329732,11.46712,1964.5,1964.0,14.21089]
[1688385330063,14.55768,1964.5,1964.0,14.21089]
[1688385330366,16.013448,1964.5,1964.0,14.21089]
[1688385330769,15.468058,1964.5,1964.0,14.21089]
[1688385331075,15.468058,1964.5,1963.9,0.40304432]
[1688385331236,15.468058,1964.5,1963.8,7.12543177]
[1688385331434,15.468058,1964.5,1963.8,14.77619993]
[1688385331435,14.182058,1964.5,1963.8,14.77619993]
[1688385331677,13.61677139,1964.5,1963.8,11.59901177]
[1688385331977,13.61677139,1964.5,1963.8,14.01607]
[1688385332535,15.13397139,1964.5,1963.8,14.01607]
[1688385332734,15.67936139,1964.5,1963.8,14.01607]
[1688385333693,15.67936139,1964.5,1963.8,14.42296319]
[1688385333844,1.56793614,1964.4,1963.8,14.42296319]
[1688385334045,5.09093,1964.3,1963.8,14.42296319]
[1688385335169,3.09093,1964.3,1963.8,14.42296319]
[1688385335383,5.09093,1964.3,1963.8,14.42296319]
[1688385336282,5.09093,1964.3,1963.8,16.29786319]
[1688385336439,5.09093,1964.3,1963.9,1.62978632]
[1688385336641,5.09093,1964.3,1964.0,10.18318]
[1688385336950,3.09093,1964.3,1964.0,10.18318]
[1688385337270,5.09093,1964.3,1963.8,1.69289319]
[1688385337581,5.09093,1964.3,1963.8,5.09216]
[1688385337582,14.02229,1964.3,1963.8,5.09216]
[1688385337790,0.509093,1964.2,1963.6,14.18253326]
[1688385338004,12.72897,1964.1,1963.6,13.77138]
[1688385339199,12.72897,1964.1,1963.6,16.31772]
[1688385339604,10.18318,1964.1,1963.6,16.31772]
[1688385339808,1.6318,1964.3,1963.7,1.631772]
[1688385339809,6.72284,1964.3,1963.7,1.631772]
[1688385339962,6.72284,1964.3,1963.8,14.01698]
[1688385340164,11.81382,1964.3,1963.8,15.80608]
[1688385343340,30.56,1964.4,1963.8,17.07786816]
[1688385343458,5.09009,1964.6,1964.0,1.297]
[1688385343809,5.09019,1964.6,1964.1,12.72805]
[1688385343958,10.18038,1964.6,1964.2,0.04795465]
[1688385344158,16.956528,1964.6,1964.2,0.04795465]
[1688385344397,12.72542,1964.6,1964.2,5.13899465]
[1688385345824,12.72542,1964.6,1964.2,0.04795465]
[1688385346025,10.72542,1964.6,1964.2,0.04795465]
[1688385346312,12.72542,1964.6,1964.2,0.04795465]
[1688385348826,12.72542,1964.6,1964.2,5.13905465]
[1688385348991,12.72542,1964.6,1964.2,5.0911]
[1688385350175,10.72542,1964.6,1964.2,5.0911]
[1688385350382,12.72542,1964.6,1964.3,0.02744703]
[1688385350634,12.72542,1964.6,1964.2,5.0911]
[1688385351309,12.72542,1964.6,1964.1,11.8754]
[1688385351496,12.72542,1964.6,1964.1,13.447219]
[1688385353321,12.72542,1964.6,1964.1,6.78418]
[1688385355385,7.63523,1964.6,1964.1,6.78418]
[1688385355587,12.72542,1964.6,1964.2,0.03559838]
[1688385355882,12.72542,1964.6,1964.1,6.78418]
[1688385362313,12.72542,1964.6,1964.1,13.17257]
[1688385362515,12.72542,1964.6,1964.2,1.36524254]
[1688385362726,12.72542,1964.6,1964.2,6.45625254]
[1688385368023,12.72542,1964.6,1964.2,11.499397]
[1688385368230,12.72542,1964.6,1964.3,0.04653675]
[1688385369026,12.72542,1964.6,1964.2,13.52986351]
[1688385371734,12.72542,1964.6,1964.3,0.00556275]
[1688385372351,12.72542,1964.6,1964.2,12.21434]
[1688385372352,14.33684276,1964.6,1964.2,7.12321]
[1688385372934,14.33684276,1964.6,1964.1,2.09799915]
[1688385373271,0.04653675,1964.5,1964.1,0.40499915]
[1688385373438,10.18132,1964.4,1964.0,11.9381]
[1688385373766,0.04653675,1964.3,1964.0,11.9381]
[1688385373937,5.13751675,1964.3,1964.0,13.45186]
[1688385374262,5.09098,1964.3,1964.0,13.45186]
[1688385375162,5.09098,1964.3,1964.0,8.36031]
[1688385375545,5.09066,1964.4,1964.0,8.36031]
[1688385375751,5.09098,1964.3,1964.0,13.45195]
[1688385377081,1.6485,1964.5,1964.1,0.03554434]
[1688385377257,2.48351628,1964.5,1964.1,5.09125]
[1688385377461,0.48351628,1964.5,1964.1,5.09125]
[1688385378293,5.09019,1964.6,1964.2,0.03551569]
[1688385378449,0.509019,1964.5,1964.1,5.09125]
[1688385378783,5.09018,1964.6,1964.2,5.09101]
[1688385379297,5.09018,1964.6,1964.2,10.18214]
[1688385379577,5.09018,1964.6,1964.3,0.02730927]
[1688385379753,5.09018,1964.6,1964.3,5.11814927]
[1688385379949,5.09018,1964.6,1964.3,5.09084]
[1688385380148,6.67300176,1964.6,1964.3,5.09084]
[1688385381281,4.67300176,1964.6,1964.3,5.09084]
[1688385382054,4.67300176,1964.6,1964.2,7.18061]
[1688385382253,0.46730018,1964.5,1964.2,7.18061]
[1688385382559,5.09027,1964.6,1964.0,5.09149]
[1688385382857,5.09027,1964.6,1964.0,7.18109]
[1688385383872,5.09027,1964.6,1964.0,12.27273]
[1688385383873,10.18054,1964.6,1964.0,12.27273]
[1688385384072,1.018054,1964.5,1964.0,12.27273]
[1688385384394,6.108434,1964.5,1964.0,12.27273]
[1688385385490,11.198814,1964.5,1964.0,12.27273]
[1688385387160,17.58877216,1964.5,1963.9,5.0918]
[1688385387499,4.31766538,1964.4,1963.7,5.09229]
[1688385387700,5.09115,1964.2,1963.7,12.21511]
[1688385389814,5.09115,1964.2,1963.7,14.76132]
[1688385390311,5.09115,1964.2,1963.7,15.1656926]
[1688385393380,5.09115,1964.2,1963.7,17.1656926]
[1688385393604,5.09115,1964.2,1963.7,19.37176186]
[1688385393806,5.09103,1964.3,1963.7,20.65776186]
[1688385394115,5.09103,1964.3,1963.9,12.72942]
[1688385394365,5.09103,1964.3,1964.0,0.05052001]
[1688385394473,9.50899816,1964.4,1964.1,10.1827]
[1688385394682,12.32187698,1964.4,1964.1,10.1827]
[1688385394982,7.64949816,1964.4,1964.2,0.05069542]
[1688385396416,7.64949816,1964.4,1964.2,5.14181542]
[1688385396716,9.80482759,1964.6,1964.2,5.14180542]
[1688385396888,11.06861575,1964.6,1964.2,10.23293542]
[1688385397215,1.88790759,1964.6,1964.2,10.23293542]
[1688385398129,2.30059262,1964.6,1964.2,10.23293542]
[1688385398430,7.39078262,1964.6,1964.2,10.23293542]
[1688385400127,12.48097262,1964.6,1964.2,10.23293542]
[1688385403512,10.60957262,1964.6,1964.2,10.23293542]
[1688385408947,13.15461262,1964.6,1964.2,10.23293542]
[1688385409146,13.15461262,1964.6,1964.2,10.18224]
[1688385409546,12.74192759,1964.6,1964.2,10.18224]
[1688385411335,12.74192759,1964.6,1964.3,0.02639052]
[1688385411532,14.01612035,1964.6,1964.2,10.18224]
[1688385411737,12.74192759,1964.6,1964.2,10.18224]
[1688385411914,12.74192759,1964.6,1964.3,0.03010735]
[1688385412534,12.74192759,1964.6,1964.2,10.18224]
[1688385412846,12.74192759,1964.6,1964.2,5.09111]
[1688385420047,15.30071575,1964.6,1964.1,1.9558]
[1688385420259,10.18038,1964.6,1964.2,1.287]
[1688385420533,10.18038,1964.6,1964.3,5.13545717]
[1688385420747,12.72542,1964.6,1964.3,1.94743717]
[1688385420953,12.72542,1964.6,1964.1,5.09129]
[1688385421173,12.72542,1964.6,1964.1,7.02669]
[1688385421376,10.1813,1964.4,1964.1,7.02669]
[1688385421991,10.1813,1964.4,1964.1,1.9354]
[1688385422178,10.1813,1964.4,1963.9,2.0494]
[1688385422179,12.7266,1964.4,1963.9,2.0494]
[1688385422484,12.7266,1964.4,1963.8,8.31342]
[1688385422691,14.3810322,1964.4,1963.9,5.09183]
[1688385422912,16.2089322,1964.4,1963.9,5.09183]
[1688385423252,16.2089322,1964.4,1963.9,10.18373]
[1688385425317,12.0092,1964.4,1963.9,12.72968]
[1688385425611,1.8279,1964.4,1964.1,5.09133]
[1688385425755,5.09047,1964.5,1964.2,0.0453989]
[1688385425963,6.10854,1964.5,1964.2,0.0453989]
[1688385426204,5.09022,1964.6,1964.2,5.1364789]
[1688385426411,7.05268,1964.7,1964.2,10.2276089]
[1688385426617,5.09017,1964.6,1964.3,1.9812]
[1688385426918,5.09017,1964.6,1964.4,0.0520995]
[1688385427904,10.18034,1964.6,1964.4,0.0520995]
[1688385429292,10.18034,1964.6,1964.4,0.03348516]
[1688385429500,10.18034,1964.6,1964.3,7.07193]
[1688385429697,10.18034,1964.6,1964.4,0.0310938]
[1688385435149,10.18034,1964.6,1964.3,7.07193]
[1688385435748,10.18034,1964.6,1964.4,0.02779005]
[1688385438350,10.18034,1964.6,1964.3,7.07193]
[1688385439766,10.18034,1964.6,1964.4,0.02751283]
[1688385442368,10.18034,1964.6,1964.3,12.16269]
[1688385442579,10.18034,1964.6,1964.3,7.07193]
[1688385445672,12.72538,1964.6,1964.3,1.9812]
[1688385445873,1.272538,1964.5,1964.3,1.9812]
[1688385446039,5.09061,1964.4,1964.3,1.9812]
[1688385454155,10.18122,1964.4,1964.3,1.9812]
[1688385455384,10.18122,1964.4,1964.0,5.09149]
[1688385455599,12.72652,1964.4,1964.0,2.0484]
[1688385455754,13.999172,1964.4,1964.0,2.0484]
[1688385456694,13.999172,1964.4,1964.0,7.14]
[1688385458797,11.453872,1964.4,1964.0,7.14]
[1688385459486,11.453872,1964.4,1964.0,12.23164]
[1688385459688,10.18122,1964.4,1964.0,12.23164]
[1688385460098,10.18122,1964.4,1964.0,14.77746]
[1688385461066,5.09061,1964.4,1964.0,14.77746]
[1688385463903,5.09061,1964.4,1964.1,0.02673883]
[1688385464107,5.09061,1964.4,1964.1,10.20926883]
[1688385464271,5.09061,1964.4,1964.1,10.18253]
[1688385466576,12.0498,1964.5,1964.1,5.09116]
[1688385466775,1.20498,1964.4,1964.1,5.09116]
[1688385466977,14.62509575,1964.5,1964.1,5.09116]
[1688385474212,17.17026575,1964.5,1964.1,5.09116]
[1688385474509,17.17026575,1964.5,1964.0,12.23139]